bitfinex/quotes_SOLUSD_20240829
["timestamp","ask_amount","ask_price","bid_price","bid_amount"]
[1724964547687,20.0,140.64,140.6,7.1122]
[1724964549193,20.0,140.64,140.61,7.1117]
[1724964550827,27.1104,140.64,140.6,17.7803]
[1724964551101,7.1117,140.62,140.58,7.113]
[1724964551275,20.0,140.64,140.59,7.1126]
[1724964552092,33.63220475,140.64,140.59,7.1126]
[1724964552300,7.1109,140.63,140.59,7.1126]
[1724964552483,20.0,140.62,140.59,7.1126]
[1724964552800,27.1114,140.62,140.58,7.1133]
[1724964554605,7.1121,140.61,140.57,24.8977]
[1724964554905,22.7124,140.61,140.57,17.784]
[1724964555115,22.7124,140.61,140.57,24.8978]
[1724964555477,15.6003,140.61,140.58,7.1132]
[1724964556102,20.0,140.62,140.59,7.1128]
[1724964556401,27.1108,140.63,140.59,7.1128]
[1724964559905,7.1114,140.62,140.58,7.1131]
[1724964560100,20.0,140.61,140.58,7.1131]
[1724964560827,7.113,140.59,140.55,7.1145]
[1724964560999,20.0,140.61,140.54,17.7882]
[1724964561314,27.112,140.61,140.56,17.7855]
[1724964561898,27.112,140.61,140.57,7.1137]
[1724964562536,20.0,140.61,140.57,7.1137]
[1724964563313,20.0,140.61,140.58,7.1132]
[1724964566735,20.0,140.61,140.58,6.1132]
[1724964567036,20.0,140.61,140.59,7.1128]
[1724964567239,20.0,140.62,140.59,7.1128]
[1724964567411,20.74260475,140.64,140.58,17.7825]
[1724964567412,20.0,140.63,140.6,7.1122]
[1724964567837,20.0,140.64,140.6,7.1122]
[1724964569514,27.1103,140.64,140.6,7.1122]
[1724964570647,27.1103,140.64,140.59,7.1126]
[1724964571529,29.59610475,140.65,140.58,17.7825]
[1724964571530,15.9639,140.65,140.6,17.7803]
[1724964571734,15.9639,140.65,140.61,7.1114]
[1724964572448,15.9639,140.65,140.62,7.1112]
[1724964573232,7.1083,140.68,140.62,17.778]
[1724964573421,7.1093,140.66,140.62,17.778]
[1724964573619,20.0,140.65,140.62,17.778]
[1724964575536,20.0,140.65,140.62,24.8892]
[1724964575716,20.0,140.66,140.62,24.8892]
[1724964576249,20.0,140.66,140.63,7.1108]
[1724964576539,20.0,140.67,140.63,7.1108]
[1724964578142,27.1088,140.67,140.63,7.1108]
[1724964579425,27.1088,140.67,140.62,24.8892]
[1724964580029,20.74170475,140.66,140.62,17.778]
[1724964580220,20.0,140.65,140.62,17.778]
[1724964580420,27.1098,140.65,140.62,17.778]
[1724964581640,7.1104,140.64,140.6,7.1123]
[1724964582023,27.1099,140.65,140.6,7.1123]
[1724964583847,7.1103,140.64,140.6,7.1123]
[1724964584144,7.1108,140.63,140.59,24.8943]
[1724964584649,7.1118,140.61,140.57,7.1138]
[1724964584828,7.1126,140.6,140.56,24.8999]
[1724964585029,7.1126,140.6,140.54,7.1149]
[1724964585030,13.63220475,140.6,140.54,7.1149]
[1724964585232,20.0,140.59,140.54,7.1149]
[1724964585464,27.1132,140.59,140.54,7.1149]
[1724964585748,20.0,140.59,140.55,7.1148]
[1724964588849,20.0,140.59,140.56,7.1143]
[1724964592458,20.0,140.59,140.55,24.9016]
[1724964594745,27.113,140.59,140.55,24.9016]
[1724964597661,7.1139,140.57,140.52,24.906]
[1724964597837,20.0,140.56,140.52,24.906]
[1724964598160,27.1144,140.56,140.52,24.906]
[1724964602875,7.1164,140.52,140.49,17.7939]
[1724964603043,7.1164,140.52,140.47,7.1185]
[1724964603406,27.1173,140.51,140.46,24.9172]
[1724964603746,13.63220475,140.5,140.44,7.1201]
[1724964603942,20.17750475,140.48,140.43,24.9227]
[1724964604149,7.1194,140.46,140.43,17.8019]
[1724964604352,20.0,140.47,140.43,24.9226]
[1724964604577,27.119,140.47,140.43,24.9226]
[1724964607475,20.17750475,140.48,140.43,24.9226]
[1724964607476,6.5453,140.48,140.44,1.42397584]
[1724964607984,6.5453,140.48,140.45,7.1198]
[1724964610258,28.77290475,140.52,140.45,7.1198]
[1724964610259,7.117,140.51,140.46,7.1192]
[1724964610577,20.0,140.5,140.46,7.1192]
[1724964611677,35.25790475,140.52,140.48,7.1184]
[1724964611869,21.6257,140.52,140.47,17.7966]
[1724964613278,21.6257,140.52,140.48,7.1183]
[1724964613580,20.0,140.51,140.48,7.1183]
[1724964613959,21.6257,140.52,140.47,17.7966]
[1724964614160,21.6257,140.52,140.49,7.1179]
[1724964615181,23.0593,140.56,140.49,17.7941]
[1724964615479,7.1154,140.54,140.5,7.1172]
[1724964616561,7.115,140.55,140.5,7.1172]
[1724964616762,20.0,140.54,140.5,7.1172]
[1724964618288,20.0,140.54,140.51,7.1167]
[1724964620067,20.0,140.54,140.49,24.9119]
[1724964620068,27.1154,140.54,140.49,24.9119]
[1724964620267,7.1168,140.52,140.47,7.1188]
[1724964620579,42.6996,140.51,140.46,24.917]
[1724964622771,42.6996,140.51,140.47,7.1189]
[1724964628680,42.6996,140.51,140.46,17.7979]
[1724964628681,35.5826,140.51,140.48,7.1183]
[1724964632589,42.6995,140.51,140.47,7.1188]
[1724964632778,6.5739,140.5,140.46,24.9171]
[1724964633686,6.5739,140.5,140.47,7.1188]
[1724964635775,6.5739,140.5,140.46,17.7979]
[1724964635987,7.1179,140.49,140.46,17.7979]
[1724964636193,7.1185,140.48,140.44,7.1203]
[1724964636494,7.1189,140.47,140.43,24.9222]
[1724964636687,7.1186,140.48,140.43,24.9222]
[1724964637292,7.1194,140.46,140.42,7.121]
[1724964637586,19.20570475,140.44,140.4,17.8054]
[1724964637791,19.20570475,140.44,140.37,21.06502596]
[1724964637990,7.1224,140.41,140.37,17.8092]
[1724964638197,20.0,140.4,140.37,21.06502596]
[1724964638375,20.0,140.4,140.37,17.8092]
[1724964639068,6.0735,140.44,140.39,7.123]
[1724964639275,20.0,140.43,140.39,7.123]
[1724964639994,20.0,140.43,140.4,7.1223]
[1724964640323,20.0,140.43,140.41,7.1217]
[1724964640475,6.0735,140.44,140.41,7.1217]
[1724964640669,6.0735,140.44,140.4,7.1224]
[1724964641896,6.0735,140.44,140.39,17.807]
[1724964641897,13.1943,140.44,140.39,24.9299]
[1724964642072,27.121,140.43,140.39,17.807]
[1724964642270,27.121,140.43,140.39,24.9299]
[1724964642774,27.121,140.43,140.39,17.807]
[1724964643075,7.122,140.41,140.36,17.8105]
[1724964643283,22.7432,140.41,140.36,24.9346]
[1724964643485,22.7432,140.41,140.37,7.1239]
[1724964643882,15.6212,140.41,140.37,7.1239]
[1724964644296,15.6212,140.41,140.38,7.1232]
[1724964646107,20.0,140.43,140.39,7.1227]
[1724964646272,20.0,140.43,140.4,7.1223]
[1724964650168,20.0,140.43,140.41,7.1219]
[1724964650390,15.7178,140.45,140.4,17.8058]
[1724964650574,20.0,140.44,140.4,17.8058]
[1724964650777,20.0,140.44,140.41,7.1218]
[1724964651174,20.0,140.44,140.42,7.1213]
[1724964651473,15.7178,140.45,140.42,7.1213]
[1724964653701,6.5616,140.47,140.42,17.8033]
[1724964654090,6.5616,140.47,140.44,7.12]
[1724964654394,6.5616,140.47,140.42,17.8033]
[1724964654600,7.1195,140.46,140.42,17.8033]
[1724964655272,20.0,140.45,140.4,7.1223]
[1724964655598,20.0,140.46,140.4,7.1223]
[1724964656403,7.1206,140.44,140.4,7.1223]
[1724964660106,7.12,140.45,140.41,7.1218]
[1724964660286,20.0,140.44,140.41,7.1218]
[1724964661594,20.0,140.44,140.4,7.1224]
[1724964662008,27.1205,140.44,140.4,7.1224]
[1724964664412,7.1224,140.41,140.36,24.9346]
[1724964664597,7.1225,140.4,140.36,24.9346]
[1724964665606,7.1221,140.41,140.36,24.9346]
[1724964665784,7.1226,140.4,140.36,24.9346]
[1724964666892,6.2692,140.42,140.37,7.1239]
[1724964667106,20.0,140.41,140.36,17.8105]
[1724964667610,20.0,140.41,140.37,7.1238]
[1724964668308,20.0,140.41,140.38,7.1234]
[1724964669007,20.0,140.41,140.39,7.1229]
[1724964669192,20.0,140.42,140.39,7.1229]
[1724964671488,6.5696,140.45,140.4,17.8057]
[1724964671687,15.4882,140.46,140.41,1.42420677]
[1724964671895,15.4882,140.46,140.41,7.1219]
[1724964672290,7.12,140.45,140.41,7.1219]
[1724964672913,22.6077,140.46,140.41,7.1219]
[1724964673589,15.4882,140.46,140.42,24.9243]
[1724964673913,20.0,140.45,140.42,24.9243]
[1724964675123,20.0,140.45,140.39,17.8065]
[1724964675413,7.1206,140.44,140.39,24.9293]
[1724964675987,7.121,140.43,140.39,24.9293]
[1724964676201,7.1218,140.42,140.38,7.1234]
[1724964678707,7.1211,140.43,140.38,7.1234]
[1724964678908,20.0,140.42,140.38,7.1234]
[1724964679814,27.1217,140.42,140.38,7.1234]
[1724964682000,20.0,140.42,140.39,7.123]
[1724964683219,20.0,140.42,140.34,6.05068275]
[1724964683220,20.0,140.42,140.41,7.1219]
[1724964683406,22.608,140.46,140.41,7.1219]
[1724964683717,22.608,140.46,140.42,7.1214]
[1724964684415,15.4882,140.46,140.42,7.1214]
[1724964685530,20.0,140.45,140.42,7.1214]
[1724964686520,20.0,140.45,140.43,7.1208]
[1724964686817,15.3284,140.49,140.44,17.8006]
[1724964686997,275.788,140.55,140.46,17.798]
[1724964686998,15.3284,140.52,140.46,17.798]
[1724964687198,15.3284,140.52,140.48,7.1183]
[1724964687500,22.4449,140.52,140.47,7.1188]
[1724964688711,22.4449,140.52,140.48,7.1182]
[1724964689400,20.0,140.51,140.48,7.1182]
[1724964690198,20.0,140.51,140.47,7.1188]
[1724964691600,27.117,140.51,140.46,24.9173]
[1724964692021,7.1175,140.5,140.46,24.9173]
[1724964695607,27.117,140.51,140.47,7.1187]
[1724964695798,20.0,140.51,140.47,7.1187]
[1724964696703,20.0,140.51,140.48,7.1183]
[1724964697321,61.67595178,140.55,140.48,17.7953]
[1724964697322,22.781,140.55,140.48,17.7953]
[1724964697525,22.781,140.55,140.49,1.42351676]
[1724964697723,22.781,140.55,140.48,17.7953]
[1724964698409,29.8959,140.55,140.51,7.1168]
[1724964699037,22.781,140.55,140.52,7.1163]
[1724964699205,16.2679,140.55,140.52,7.1163]
[1724964699521,16.2679,140.55,140.51,7.1168]
[1724964699837,23.3829,140.55,140.51,7.1168]
[1724964700434,7.1154,140.54,140.5,24.9105]
[1724964700727,7.1154,140.54,140.47,17.7968]
[1724964700728,34.1798871,140.54,140.47,17.7968]
[1724964701034,20.0,140.53,140.47,17.7968]
[1724964702026,20.0,140.53,140.46,35.5953]
[1724964702027,7.1185,140.48,140.43,7.1209]
[1724964702403,41.2973871,140.5,140.45,7.1198]
[1724964702821,20.0,140.49,140.45,7.1198]
[1724964703020,27.1181,140.49,140.45,7.1198]
[1724964704943,7.1185,140.48,140.43,17.8018]
[1724964705114,20.0,140.47,140.43,17.8018]
[1724964705513,27.119,140.47,140.43,24.9226]
[1724964706218,20.0,140.47,140.43,24.9226]
[1724964709932,20.0,140.47,140.43,17.8018]
[1724964710430,20.0,140.48,140.43,17.8018]
[1724964710730,27.1185,140.48,140.44,7.1203]
[1724964710937,20.0,140.48,140.44,7.1203]
[1724964711238,20.0,140.48,140.45,7.1198]
[1724964711741,20.0,140.48,140.46,17.7985]
[1724964711917,20.0,140.5,140.46,17.7985]
[1724964712737,20.0,140.5,140.47,7.1189]
[1724964715546,20.0,140.5,140.46,24.9177]
[1724964716044,20.0,140.5,140.47,7.1188]
[1724964716223,6.6651,140.52,140.49,7.1178]
[1724964716619,16.1408,140.53,140.5,7.1174]
[1724964717032,23.2569,140.53,140.49,7.1178]
[1724964717841,16.1408,140.53,140.5,7.1172]
[1724964719555,23.2568,140.53,140.48,17.7956]
[1724964720037,23.2568,140.53,140.49,7.1177]
[1724964723949,7.1164,140.52,140.48,24.9139]
[1724964724448,23.2568,140.53,140.48,24.9139]
[1724964725731,23.2568,140.53,140.49,7.1176]
[1724964727289,7.1154,140.54,140.5,7.1173]
[1724964727556,20.0,140.53,140.5,7.1173]
[1724964728560,27.1162,140.53,140.48,17.7956]
[1724964728765,7.1167,140.52,140.48,24.9138]
[1724964729062,27.1159,140.53,140.49,7.1178]
[1724964729635,20.0,140.53,140.5,17.7934]
[1724964729865,20.0,140.54,140.5,17.7934]
[1724964730174,15.9291,140.56,140.52,17.7908]
[1724964730328,6.5004,140.58,140.53,1.42290745]
[1724964730650,15.5311,140.6,140.53,1.42290745]
[1724964730836,15.5311,140.6,140.53,46.42290745]
[1724964731258,22.6434,140.6,140.56,7.1143]
[1724964731857,27.1129,140.59,140.55,7.1148]
[1724964732064,27.1129,140.59,140.54,24.9033]
[1724964735769,7.114,140.57,140.51,17.7915]
[1724964735939,20.0,140.56,140.52,7.1163]
[1724964736447,27.1145,140.56,140.52,7.1163]
[1724964737257,27.1145,140.56,140.53,17.7893]
[1724964737258,20.0,140.56,140.53,17.7893]
[1724964737465,20.0,140.57,140.54,7.115]
[1724964737655,20.0,140.58,140.54,7.115]
[1724964738831,20.0,140.59,140.53,24.9051]
[1724964739340,7.1134,140.58,140.53,24.9051]
[1724964739666,20.0,140.57,140.53,24.9051]
[1724964746340,27.114,140.57,140.53,24.9051]
[1724964746542,7.1145,140.56,140.53,17.7893]
[1724964747240,20.0,140.55,140.5,24.9098]
[1724964748135,16.3394,140.54,140.47,17.7963]
[1724964748454,16.3394,140.54,140.48,7.1181]
[1724964748455,7.1164,140.52,140.48,7.1181]
[1724964749261,27.116,140.53,140.48,7.1181]
[1724964749963,7.1166,140.52,140.48,7.1181]
[1724964753351,27.1171,140.51,140.47,24.9151]
[1724964753538,7.1171,140.51,140.47,24.9151]
[1724964753734,7.1171,140.51,140.47,17.7963]
[1724964753938,27.1174,140.5,140.47,17.7963]
[1724964754169,7.1174,140.5,140.47,17.7963]
[1724964754644,7.1174,140.5,140.46,7.119]
[1724964755647,20.0,140.53,140.47,7.1186]
[1724964755967,7.1169,140.51,140.47,7.1186]
[1724964756162,20.0,140.5,140.47,7.1186]
[1724964756451,20.0,140.5,140.47,8.54215935]
[1724964757542,20.0,140.5,140.47,7.1186]
[1724964758941,27.1176,140.5,140.46,24.917]
[1724964759168,7.1176,140.5,140.46,24.917]
[1724964762048,7.1171,140.51,140.46,24.917]
[1724964762243,20.0,140.5,140.46,24.917]
[1724964765053,27.1174,140.5,140.46,24.917]
[1724964776059,20.0,140.5,140.46,17.7977]
[1724964776984,20.0,140.5,140.47,7.1187]
[1724964790490,16.3394,140.54,140.5,7.117]
[1724964791186,16.3394,140.54,140.51,7.1167]
[1724964793383,20.0,140.53,140.51,7.1167]
[1724964793687,20.0,140.53,140.5,24.9104]
[1724964794368,13.65512135,140.52,140.47,17.7967]
[1724964794704,7.1174,140.51,140.47,24.9155]
[1724964799379,20.77152135,140.52,140.48,7.1184]
[1724964799584,20.0,140.51,140.48,7.1184]
[1724964800385,7.116,140.53,140.48,7.1184]
[1724964800386,20.0,140.52,140.48,7.1184]
[1724964801773,40.77162135,140.52,140.48,7.1184]
[1724964802293,40.77162135,140.52,140.47,24.9154]
[1724964802501,40.77162135,140.52,140.48,7.1183]
[1724964802998,20.0,140.52,140.5,7.1172]
[1724964803305,40.77102135,140.53,140.49,24.9121]
[1724964804282,40.77102135,140.53,140.49,17.7944]
[1724964804487,7.1165,140.52,140.49,17.7944]
[1724964804787,20.0,140.51,140.48,7.1182]
[1724964805373,20.0,140.51,140.47,7.1189]
[1724964805904,16.3394,140.54,140.48,17.7954]
[1724964806080,20.0,140.53,140.5,7.117]
[1724964806485,20.0,140.53,140.49,7.1178]
[1724964807593,27.116,140.53,140.49,7.1178]
[1724964809596,20.0,140.53,140.5,7.1173]
[1724964811982,20.0,140.53,140.5,17.793]
[1724964812189,16.2703,140.58,140.51,1.42310092]
[1724964812387,23.3837,140.58,140.53,7.1155]
[1724964812593,23.3837,140.58,140.54,7.1152]
[1724964813298,23.3837,140.58,140.52,17.7905]
[1724964813299,16.2703,140.58,140.55,7.1148]
[1724964813603,23.3838,140.58,140.54,7.1152]
[1724964815800,16.2703,140.58,140.53,17.789]
[1724964816179,16.2703,140.58,140.54,7.1152]
[1724964816603,16.2703,140.58,140.55,7.1146]
[1724964816790,13.6372,140.59,140.55,7.1146]
[1724964817107,20.0,140.58,140.55,7.1146]
[1724964829682,20.0,140.58,140.53,17.789]
[1724964830002,13.65512135,140.57,140.5,17.7929]
[1724964830209,7.1147,140.56,140.52,7.116]
[1724964831012,20.76912135,140.57,140.52,7.116]
[1724964831714,7.1144,140.56,140.52,7.116]
[1724964839020,20.0,140.58,140.52,17.7906]
[1724964839412,27.1135,140.58,140.54,7.1154]
[1724964841001,7.1139,140.57,140.53,7.1158]
[1724964841315,20.76912135,140.57,140.53,7.1157]
[1724964841519,13.65512135,140.57,140.54,7.1152]
[1724964841725,27.1135,140.58,140.54,7.1152]
[1724964844119,7.114,140.57,140.53,7.1157]
[1724964846606,27.1134,140.58,140.54,7.1152]
[1724964847213,16.3766,140.61,140.57,7.1137]
[1724964847612,30.03172135,140.61,140.57,7.1137]
[1724964848206,37.14392135,140.61,140.57,7.1137]
[1724964854508,13.65512135,140.59,140.53,17.7888]
[1724964855031,20.0,140.58,140.53,17.7888]
[1724964855907,27.1137,140.58,140.54,7.1153]
[1724964863257,7.1179,140.5,140.45,7.1195]
[1724964863459,20.0,140.49,140.44,23.84553114]
[1724964863622,20.0,140.49,140.45,30.0]
[1724964863824,27.1179,140.49,140.45,7.1199]
[1724964864452,20.0,140.49,140.45,7.1199]
[1724964865252,19.94671464,140.49,140.45,7.1199]
[1724964872154,40.71983599,140.49,140.44,24.9212]
[1724964877647,29.054,140.48,140.41,17.8047]
[1724964877844,49.054,140.48,140.41,24.9263]
[1724964878953,62.70912135,140.48,140.41,24.9263]
[1724964879153,62.70912135,140.48,140.41,17.8047]
[1724964879362,107.70912135,140.48,140.41,17.8047]
[1724964879832,49.054,140.48,140.41,24.9265]
[1724964880035,62.70912135,140.48,140.41,24.9265]
[1724964882955,49.054,140.48,140.41,17.8047]
[1724964883263,43.0004,140.48,140.41,17.8047]
[1724964883863,56.65552135,140.48,140.41,17.8047]
[1724964884450,56.65552135,140.48,140.42,7.1213]
[1724964888066,56.65552135,140.48,140.41,24.9265]
[1724964888243,101.65552135,140.48,140.41,17.8047]
[1724964888940,88.0004,140.48,140.41,17.8047]
[1724964889640,7.1208,140.44,140.4,7.1224]
[1724964890966,7.12,140.45,140.41,7.1218]
[1724964891145,20.0,140.44,140.41,7.1218]
[1724964892061,20.0,140.44,140.39,13.65512135]
[1724964892368,20.0,140.47,140.39,13.65512135]
[1724964892866,7.1205,140.44,140.4,7.1221]
[1724964893159,27.1193,140.47,140.41,48.40080678]
[1724964893464,27.1193,140.47,140.43,7.1209]
[1724964893850,15.9458,140.52,140.43,20.07252135]
[1724964894163,15.9458,140.52,140.44,46.42368363]
[1724964894463,53.3574,140.57,140.45,30.59571313]
[1724964894640,13.65512135,140.56,140.47,13.65512135]
[1724964895041,7.116,140.53,140.48,13.5358]
[1724964895241,17.7856,140.57,140.48,6.4174]
[1724964895656,13.65512135,140.56,140.48,6.4174]
[1724964895860,17.7814,140.6,140.49,31.44922135]
[1724964896086,13.65512135,140.59,140.49,31.44922135]
[1724964897264,7.115,140.55,140.5,7.1173]
[1724964897446,17.7814,140.6,140.49,31.44922135]
[1724964897447,7.1144,140.56,140.51,23.5756]
[1724964898549,7.1144,140.56,140.52,7.1163]
[1724964898886,7.1132,140.59,140.53,13.65512135]
[1724964899047,7.1132,140.59,140.54,7.1153]
[1724964899652,7.1137,140.58,140.53,24.9049]
[1724964899875,13.65512135,140.57,140.5,17.7935]
[1724964900655,27.1148,140.56,140.51,7.1168]
[1724964902460,20.0,140.56,140.52,7.1163]
[1724964902660,7.112,140.61,140.56,7.1141]
[1724964903086,17.7724,140.67,140.56,17.7851]
[1724964903259,13.65512135,140.66,140.57,1.42272614]
[1724964903464,7.1108,140.63,140.58,7.1133]
[1724964903670,17.7724,140.67,140.56,31.44022135]
[1724964903671,13.65512135,140.62,140.56,17.7851]
[1724964903974,7.1123,140.61,140.56,24.899]
[1724964904189,7.1109,140.63,140.58,7.1129]
[1724964905485,20.0,140.62,140.58,7.1129]
[1724964905674,13.65512135,140.67,140.59,1.42244428]
[1724964906366,7.1098,140.65,140.6,7.1119]
[1724964906863,20.0,140.64,140.6,7.1119]
[1724964907189,16.4343,140.69,140.59,13.65512135]
[1724964907367,16.4343,140.69,140.63,7.1106]
[1724964907368,7.1087,140.68,140.63,7.1106]
[1724964908082,7.1089,140.67,140.62,24.8889]
[1724964908774,16.4343,140.69,140.62,24.8889]
[1724964908775,7.1094,140.66,140.62,17.7777]
[1724964910586,7.1094,140.66,140.62,24.8889]
[1724964911594,7.1098,140.65,140.6,7.1118]
[1724964911766,34.06282494,140.67,140.6,7.1118]
[1724964912087,20.0,140.66,140.6,7.1118]
[1724964913272,7.1103,140.64,140.6,7.1118]
[1724964915690,34.06282494,140.65,140.56,34.1716]
[1724964915990,34.06282494,140.63,140.56,17.7855]
[1724964916192,20.0,140.62,140.56,17.7855]
[1724964916892,34.06282494,140.61,140.55,7.1148]
[1724964918388,7.1129,140.59,140.55,7.1148]
[1724964918895,7.114,140.57,140.53,17.7891]
[1724964922165,7.1144,140.56,140.53,17.7891]
[1724964924293,7.114,140.57,140.53,24.905]
[1724964927390,7.1145,140.56,140.53,17.7891]
[1724964928881,7.1145,140.56,140.52,7.1162]
[1724964929472,7.1172,140.51,140.47,17.7966]
[1724964929676,7.1178,140.5,140.45,7.1199]
[1724964929890,7.1178,140.5,140.46,30.0]
[1724964930198,7.118,140.49,140.44,24.9209]
[1724964932381,7.118,140.49,140.45,7.1198]
[1724964933790,7.1174,140.5,140.46,7.1193]
[1724964936695,7.1174,140.5,140.45,7.1198]
[1724964938181,7.1179,140.49,140.45,7.1198]
[1724964939903,7.1179,140.49,140.44,24.9208]
[1724964940808,7.1185,140.48,140.44,24.9208]
[1724964942103,7.119,140.47,140.44,17.8005]
[1724964944085,7.1185,140.48,140.44,24.9209]
[1724964945786,7.118,140.49,140.45,8.54382223]
[1724964945991,20.0,140.48,140.45,8.54382223]
[1724964946502,20.0,140.48,140.45,7.1199]
[1724964947108,15.6806,140.5,140.45,7.1199]
[1724964947109,13.1326,140.51,140.46,17.7983]
[1724964947299,20.0,140.5,140.46,17.7983]
[1724964948215,27.1177,140.5,140.46,24.9176]
[1724964949086,13.1327,140.51,140.47,7.1188]
[1724964949287,7.1164,140.52,140.48,7.1184]
[1724964949794,13.65997907,140.51,140.46,24.9176]
[1724964949989,13.65997907,140.49,140.45,7.1197]
[1724964950300,7.1187,140.48,140.43,24.9224]
[1724964951621,7.1187,140.48,140.44,7.1203]
[1724964952514,7.1187,140.48,140.43,24.9226]
[1724964952907,7.119,140.47,140.43,24.9226]
[1724964954425,6.17807182,140.47,140.43,24.9226]
[1724964956514,7.1196,140.46,140.43,17.8018]
[1724964956715,7.1196,140.46,140.42,7.1214]
[1724964961322,7.119,140.47,140.42,24.9246]
[1724964961507,20.0,140.46,140.42,24.9246]
[1724964961700,20.0,140.46,140.43,7.1208]
[1724964962098,20.0,140.46,140.42,24.9246]
[1724964962398,22.404,140.48,140.42,17.8033]
[1724964962712,15.2855,140.48,140.44,7.1199]
[1724964963231,7.1183,140.49,140.44,7.1199]
[1724964963798,20.0,140.48,140.44,7.1199]
[1724964964225,15.6539,140.52,140.44,13.65997907]
[1724964964511,22.7707,140.52,140.47,7.1185]
[1724964964727,22.7707,140.52,140.47,8.54206083]
[1724964966512,7.117,140.51,140.46,24.9173]
[1724964966716,7.1174,140.5,140.46,24.9173]
[1724964968325,22.7706,140.52,140.47,7.1188]
[1724964968535,27.117,140.51,140.46,24.9173]
[1724964969426,27.117,140.51,140.47,7.1188]
[1724964970739,13.7771,140.53,140.48,7.1183]
[1724964971609,23.0319,140.55,140.49,19.21777601]
[1724964971830,23.0319,140.55,140.49,17.7943]
[1724964972032,7.1155,140.54,140.5,7.1173]
[1724964973329,20.0,140.53,140.5,7.1173]
[1724964974711,27.1161,140.53,140.49,24.9121]
[1724964983320,20.0,140.53,140.49,24.9121]
[1724964983524,20.0,140.53,140.5,8.54067469]
[1724964983829,7.1149,140.55,140.51,7.1168]
[1724964984223,6.661,140.57,140.51,7.1168]
[1724964984224,7.1145,140.56,140.52,1.4231104]
[1724964986640,7.1145,140.56,140.51,8.53993547]
[1724964986834,7.1145,140.56,140.51,7.1168]
[1724964988151,7.1145,140.56,140.52,8.53954478]
[1724964989639,7.1145,140.56,140.52,7.1164]
[1724964990449,15.4297,140.59,140.51,13.64249899]
[1724964990624,15.4297,140.59,140.54,7.1152]
[1724964990625,22.5426,140.59,140.54,7.1152]
[1724964990936,15.4297,140.59,140.55,8.53762829]
[1724964991133,7.1127,140.6,140.55,8.53762829]
[1724964991929,7.1127,140.6,140.55,7.1148]
[1724964992643,7.1129,140.59,140.55,7.1148]
[1724964995439,7.1129,140.59,140.53,17.7894]
[1724964995644,7.1129,140.59,140.54,7.1153]
[1724965001753,7.1139,140.57,140.53,24.9052]
[1724965002747,20.75599899,140.58,140.53,24.9052]
[1724965002952,7.1135,140.58,140.53,24.9052]
[1724965003148,7.1135,140.58,140.54,7.1153]
[1724965003734,7.1135,140.58,140.54,8.53810305]
[1724965003933,7.1135,140.58,140.55,1.42280922]
[1724965005557,7.1129,140.59,140.55,1.42280922]
[1724965005924,7.1129,140.59,140.55,7.1148]
[1724965006956,7.1134,140.58,140.54,7.1152]
[1724965007449,7.1134,140.58,140.53,24.9049]
[1724965007663,7.1141,140.57,140.53,24.9049]
[1724965008245,7.1141,140.57,140.53,17.7894]
[1724965008246,7.1145,140.56,140.53,17.7894]